bitfinex-derivatives/quotes_ETHF0:USTF0_20240925
["timestamp","ask_amount","ask_price","bid_price","bid_amount"]
[1727276766098,4.1958,2628.9,2628.8,2.67]
[1727276767298,4.1958,2628.9,2628.6,2.67]
[1727276767299,4.5762,2628.9,2628.6,2.67]
[1727276767608,0.7722,2628.9,2628.7,7.76796805]
[1727276768806,0.3918,2628.9,2628.7,7.76796805]
[1727276769101,9.6818,2628.8,2628.2,0.3702]
[1727276769302,0.38047,2628.5,2628.2,0.3805]
[1727276769505,1.13228,2628.4,2628.3,7.92717343]
[1727276769695,0.3805,2628.3,2628.0,0.75132]
[1727276769899,3.2078,2628.2,2627.6,2.67]
[1727276770106,3.2078,2628.2,2628.1,7.92717343]
[1727276770107,3.58831,2628.2,2628.1,7.92717343]
[1727276770508,3.58831,2628.2,2627.9,8.56910326]
[1727276770509,7.39311,2628.2,2627.9,8.56910326]
[1727276770805,7.39311,2628.2,2627.8,0.38055]
[1727276770806,0.38053,2628.1,2627.8,0.38055]
[1727276770996,3.2078,2627.9,2627.0,0.99213224]
[1727276771299,3.05059,2627.7,2627.4,8.11583391]
[1727276771707,3.05059,2627.7,2627.4,0.38061]
[1727276771906,0.7909,2627.8,2627.2,2.67]
[1727276772095,0.7909,2627.8,2627.6,0.38058]
[1727276772301,0.38058,2627.7,2627.4,2.67]
[1727276772598,0.38058,2627.7,2627.4,0.38062]
[1727276772801,1.17147,2627.8,2627.2,2.67]
[1727276773001,1.17147,2627.8,2627.4,0.38061]
[1727276773202,0.38058,2627.7,2627.4,0.38061]
[1727276773421,3.2078,2627.6,2627.3,8.29656014]
[1727276774206,3.2078,2627.6,2627.4,0.38061]
[1727276774501,3.2078,2627.6,2627.3,10.96656014]
[1727276774698,3.2078,2627.6,2627.3,7.91593014]
[1727276774901,3.2078,2627.6,2627.2,10.98705413]
[1727276775101,3.2078,2627.6,2627.3,0.38063]
[1727276775409,3.58839,2627.6,2627.3,8.11087161]
[1727276775707,3.2078,2627.6,2627.3,8.11087161]
[1727276776104,3.2078,2627.6,2627.4,0.38062]
[1727276776294,3.2078,2627.6,2627.3,8.49149161]
[1727276776706,3.2078,2627.6,2627.3,8.11087161]
[1727276776906,0.38058,2627.7,2627.4,2.67]
[1727276777800,1.17147,2627.8,2627.4,3.05061]
[1727276778296,0.7909,2627.8,2627.5,0.3806]
[1727276778498,1.17147,2627.8,2627.4,3.05061]
[1727276778816,0.38058,2627.7,2627.4,2.67]
[1727276779001,0.7909,2627.8,2627.4,2.67]
[1727276779197,2.67,2628.2,2627.1,1.34603]
[1727276779198,0.38051,2628.2,2627.8,0.38055]
[1727276779400,0.7774,2628.2,2627.9,2.67]
[1727276779608,1.1579,2628.2,2627.9,2.67]
[1727276780111,1.15791,2628.2,2627.8,3.42756]
[1727276780313,3.2078,2628.0,2627.5,0.3693]
[1727276780508,3.2078,2628.0,2627.4,3.05061]
[1727276780509,6.82916,2628.0,2627.4,0.38062]
[1727276780807,3.58838,2627.7,2627.6,7.89729294]
[1727276781010,0.38058,2627.7,2627.5,7.89729294]
[1727276781209,0.38058,2627.7,2627.3,8.27791294]
[1727276781210,0.38059,2627.6,2627.3,8.27791294]
[1727276781405,0.7774,2627.6,2627.2,2.67]
[1727276781604,3.2078,2628.0,2627.4,10.58088273]
[1727276781813,0.399,2627.8,2627.6,0.38059]
[1727276782004,0.399,2627.8,2627.6,2.67]
[1727276782307,0.399,2627.8,2627.6,3.05058]
[1727276782701,0.399,2627.8,2627.6,2.67]
[1727276782903,0.3777,2627.9,2627.7,8.29573668]
[1727276783202,0.3777,2627.9,2627.7,7.91515668]
[1727276783403,0.3777,2627.9,2627.5,0.3806]
[1727276783404,3.8056,2627.8,2627.5,0.3806]
[1727276783606,0.3931,2627.7,2627.5,0.3806]
[1727276783818,0.3931,2627.7,2627.6,8.18815979]
[1727276785218,0.3931,2627.7,2627.6,8.56874979]
[1727276785417,0.3777,2627.9,2627.6,8.56874979]
[1727276785622,0.75825,2627.9,2627.6,8.56874979]
[1727276786319,3.58833,2628.0,2627.7,1.18107]
[1727276786915,3.2078,2628.0,2627.7,0.8005]
[1727276787214,3.2078,2628.0,2627.8,0.38055]
[1727276787418,3.2078,2628.0,2627.7,0.8005]
[1727276787419,3.2078,2628.0,2627.9,0.38055]
[1727276787609,7.0134,2628.0,2627.9,0.38055]
[1727276787815,7.0134,2628.0,2627.8,0.38056]
[1727276788015,3.2078,2628.0,2627.7,1.18107]
[1727276788218,3.6012,2628.0,2627.8,0.38056]
[1727276788608,0.77962,2628.1,2627.7,0.8005]
[1727276788817,0.77962,2628.1,2627.8,0.38056]
[1727276789019,0.77962,2628.1,2627.7,0.8005]
[1727276789020,0.77962,2628.1,2627.7,1.18107]
[1727276789217,3.2078,2628.0,2627.7,0.8005]
[1727276789422,2.67,2627.9,2627.2,2.67]
[1727276789623,3.2078,2627.7,2627.3,0.4008]
[1727276789917,3.2078,2627.7,2627.5,8.51283316]
[1727276790124,3.9893,2627.7,2627.5,0.3806]
[1727276790420,3.9893,2627.7,2627.6,7.79752946]
[1727276790623,3.9893,2627.7,2627.6,8.17811946]
[1727276790809,3.2078,2627.7,2627.6,0.38059]
[1727276791324,3.2078,2627.7,2627.5,0.7853]
[1727276791625,3.2078,2627.7,2627.6,0.38059]
[1727276791816,0.3971,2628.0,2627.8,0.38056]
[1727276792118,0.3971,2628.0,2627.8,0.38055]
[1727276792512,0.3971,2628.0,2627.6,8.30665891]
[1727276792710,0.3971,2628.0,2627.8,0.38056]
[1727276794120,0.3971,2628.0,2627.9,0.38055]
[1727276794323,0.4042,2628.2,2628.0,0.38052]
[1727276794521,0.4042,2628.2,2628.0,0.4038]
[1727276794828,0.78471,2628.2,2628.0,0.4038]
[1727276795027,0.4042,2628.2,2628.0,0.78433]
[1727276795527,3.58829,2628.3,2628.0,0.4038]
[1727276795722,3.58829,2628.3,2628.0,0.7787]
[1727276796026,0.3818,2628.4,2628.3,0.38049]
[1727276796216,3.2078,2628.5,2628.2,2.67]
[1727276796522,1.14223,2628.7,2628.4,0.38046]
[1727276796727,1.14223,2628.7,2628.3,8.28979493]
[1727276797214,0.38045,2628.6,2628.3,7.90931493]
[1727276797413,4.35004,2628.7,2628.3,7.90931493]
[1727276797724,4.35004,2628.7,2628.3,8.28979493]
[1727276798027,1.14224,2628.7,2628.4,0.38047]
[1727276798222,1.14224,2628.7,2628.3,8.28979493]
[1727276799930,0.7618,2628.7,2628.3,7.90931493]
[1727276800131,3.2078,2628.8,2628.4,4.64266009]
[1727276800429,3.2078,2628.8,2628.6,0.38044]
[1727276800622,0.38041,2628.9,2628.6,0.38044]
[1727276800823,3.2078,2628.8,2628.5,8.58675152]
[1727276801026,3.2078,2628.8,2628.6,0.38044]
[1727276801729,3.2078,2628.8,2628.5,8.20630152]
[1727276801925,3.2078,2628.8,2628.6,0.38044]
[1727276802129,3.2078,2628.8,2628.7,0.38043]
[1727276802527,3.2078,2628.8,2628.5,8.20630152]
[1727276802528,3.2078,2628.8,2628.6,0.38044]
[1727276803037,3.2078,2628.8,2628.7,0.38043]
[1727276803435,3.2078,2628.8,2628.6,0.38043]
[1727276804332,3.2078,2628.8,2628.5,8.20630152]
[1727276804539,3.2078,2628.8,2628.5,8.58675152]
[1727276804735,3.2078,2628.8,2628.6,0.38044]
[1727276805936,3.2078,2628.8,2628.5,8.58675152]
[1727276806128,3.58822,2628.8,2628.5,8.58675152]
[1727276806641,0.38043,2628.7,2628.5,7.82500152]
[1727276806932,5.8778,2628.8,2628.5,7.82500152]
[1727276807130,0.3748,2628.6,2628.5,7.82500152]
[1727276807637,0.3748,2628.6,2628.5,8.20546152]
[1727276807829,0.3748,2628.6,2628.5,7.82500152]
[1727276808239,0.3748,2628.6,2628.5,8.20546152]
[1727276808535,0.3748,2628.6,2628.5,7.82500152]
[1727276808536,0.75524,2628.6,2628.5,7.82500152]
[1727276808726,3.0448,2628.6,2628.2,0.74919]
[1727276809031,0.38047,2628.4,2628.3,8.11418909]
[1727276809237,3.97736,2628.5,2628.3,8.49466909]
[1727276809740,0.38048,2628.4,2628.2,8.24704454]
[1727276809923,0.38048,2628.4,2628.2,0.38049]
[1727276810127,3.97737,2628.5,2628.3,8.24704454]
[1727276810533,3.97737,2628.5,2628.3,0.38049]
[1727276810931,0.38051,2628.2,2628.0,0.74922]
[1727276811125,0.3937,2628.1,2628.0,0.38052]
[1727276811325,0.77422,2628.1,2627.9,0.38054]
[1727276811536,0.77422,2628.1,2628.0,0.38053]
[1727276811537,0.3937,2628.1,2628.0,0.38053]
[1727276811833,0.3937,2628.1,2628.0,7.89193797]
[1727276812039,0.3937,2628.1,2627.9,0.38055]
[1727276812240,0.3937,2628.1,2628.0,0.38053]
[1727276812437,0.3937,2628.1,2628.0,8.5096917]
[1727276812635,0.3937,2628.1,2628.0,0.38053]
[1727276814839,0.77422,2628.1,2627.8,0.38056]
[1727276815155,0.3717,2628.0,2627.9,0.38055]
[1727276815337,0.3717,2628.0,2627.8,8.31692914]
[1727276815538,0.3717,2628.0,2627.9,7.97137644]
[1727276815740,0.3717,2628.0,2627.7,0.78307]
[1727276816141,0.3717,2628.0,2627.8,7.97137644]
[1727276817038,0.3717,2628.0,2627.8,8.35193644]
[1727276817239,0.3717,2628.0,2627.8,7.97137644]
[1727276817542,0.3717,2628.0,2627.8,8.35192644]
[1727276818336,0.3937,2628.1,2627.9,0.38055]
[1727276818542,2.67,2628.4,2627.8,7.97137644]
[1727276818543,0.38048,2628.4,2628.0,3.05053]
[1727276818749,0.38048,2628.4,2628.0,8.34515269]
[1727276818933,1.16697,2628.5,2628.0,8.34515269]
[1727276819139,1.16697,2628.5,2628.0,0.38053]
[1727276819445,0.38048,2628.4,2628.0,0.38053]
[1727276819645,1.16697,2628.5,2628.1,0.38052]
[1727276819945,3.2078,2628.3,2628.0,8.43268598]
[1727276820150,3.2078,2628.3,2628.0,8.83548598]
[1727276820536,3.2078,2628.3,2628.1,0.38052]
[1727276821134,3.2078,2628.3,2628.2,0.3805]
[1727276821340,0.7865,2628.5,2628.2,0.3805]
[1727276821541,1.16696,2628.5,2628.1,3.0442]
[1727276821744,3.2078,2628.4,2628.1,0.3742]
[1727276822134,3.58828,2628.4,2628.1,0.3742]
[1727276822341,3.2078,2628.4,2628.0,0.78333]
[1727276822749,0.38049,2628.3,2628.1,7.97834981]
[1727276823248,6.25828,2628.4,2628.1,7.97834981]
[1727276823851,6.5642,2628.7,2628.3,2.67]
[1727276824051,13.00592585,2629.0,2628.6,2.67]
[1727276824052,0.3986,2628.8,2628.6,2.67]
[1727276824254,3.2078,2629.2,2628.6,2.67]
[1727276824546,0.7869,2629.2,2628.8,3.66213224]
[1727276824853,3.9947,2629.2,2628.9,7.85123799]
[1727276825244,3.9947,2629.2,2628.8,7.85123799]
[1727276825553,3.9947,2629.2,2628.6,0.38044]
[1727276825554,2.67,2629.1,2628.6,0.38044]
[1727276825851,3.2078,2628.9,2628.8,7.84716698]
[1727276826051,3.2078,2628.9,2628.7,7.84716698]
[1727276826249,0.3816,2628.8,2628.6,7.84716698]
[1727276826444,0.3816,2628.8,2628.6,0.38044]
[1727276826763,0.3816,2628.8,2628.6,8.4384834]
[1727276827049,0.3816,2628.8,2628.6,8.0580434]
[1727276827248,0.3816,2628.8,2628.6,8.4384834]
[1727276827646,0.3816,2628.8,2628.6,8.0580434]
[1727276827837,0.3816,2628.8,2628.6,8.4384834]
[1727276828048,0.3816,2628.8,2628.6,8.0580434]
[1727276828446,0.3816,2628.8,2628.6,8.4384834]
[1727276828955,0.3816,2628.8,2628.7,0.38043]
[1727276829453,0.3816,2628.8,2628.7,8.19968974]
[1727276829951,3.2078,2628.9,2628.7,8.19967974]
[1727276830358,3.2078,2628.9,2628.7,7.81925974]
[1727276830554,3.2078,2628.9,2628.8,0.38042]
[1727276830750,3.2078,2628.9,2628.8,0.75952]
[1727276833053,0.3927,2629.1,2629.0,0.38039]
[1727276833258,0.3927,2629.1,2628.9,0.38039]
[1727276833462,0.3927,2629.1,2629.0,0.38039]
[1727276833644,0.3927,2629.1,2629.0,8.23607054]
[1727276834457,0.3927,2629.1,2629.0,7.85568054]
[1727276836760,0.3927,2629.1,2628.5,5.49907287]
[1727276836761,6.8667,2629.1,2628.5,1.37943224]
[1727276836957,3.2078,2629.0,2628.6,0.38044]
[1727276837265,3.2078,2629.0,2628.7,7.78402464]
[1727276837555,3.2078,2629.0,2628.7,0.38043]
[1727276837951,3.2078,2629.0,2628.8,7.77460353]
[1727276838152,3.2078,2629.0,2628.8,8.15502353]
[1727276838859,3.2078,2629.0,2628.9,0.3804]
[1727276839249,3.2078,2629.0,2628.8,8.52921353]
[1727276839657,3.2078,2629.0,2628.8,8.14880353]
[1727276840454,3.2078,2629.0,2628.8,7.77460353]
[1727276840967,3.2078,2629.0,2628.8,8.15501353]
[1727276841754,3.2078,2629.0,2628.8,7.77460353]
[1727276842258,3.2078,2629.0,2628.8,8.15501353]
[1727276842455,0.3927,2629.1,2628.8,7.77460353]
[1727276842662,0.3927,2629.1,2629.0,0.38039]
[1727276842965,0.3927,2629.1,2628.9,0.38039]
[1727276843462,3.2078,2629.3,2628.9,0.38039]
[1727276843463,3.2078,2629.3,2628.9,7.79239938]
[1727276843661,3.2078,2629.3,2629.0,0.3712]
[1727276843867,3.2078,2629.3,2629.2,0.38036]
[1727276844158,3.2078,2629.3,2629.0,0.3712]
[1727276844564,2.67,2629.1,2628.7,0.99213224]
[1727276844760,0.3657,2629.0,2628.7,0.38043]
[1727276844952,0.7417,2629.0,2628.7,7.82596261]
[1727276845157,0.7417,2629.0,2628.7,8.20639261]
[1727276845455,3.2078,2628.9,2628.7,7.82596261]
[1727276845656,3.6095,2628.9,2628.7,7.82596261]
[1727276845856,3.98991,2628.9,2628.7,7.82596261]
[1727276846060,3.6095,2628.9,2628.7,7.82596261]
[1727276846566,0.38044,2628.7,2628.4,0.99213224]
[1727276846859,3.2078,2628.6,2628.3,0.38048]
[1727276847061,0.3871,2628.5,2628.2,0.99213224]
[1727276847269,0.3871,2628.5,2628.4,8.23194395]
[1727276847652,0.3871,2628.5,2628.3,8.23195395]
[1727276847863,0.3871,2628.5,2628.3,0.38048]
[1727276848062,0.3871,2628.5,2628.4,8.15955311]
[1727276848668,3.0571,2628.5,2628.4,8.15955311]
[1727276848858,6.8619,2628.5,2628.1,0.38051]
[1727276849058,3.2078,2628.3,2628.0,0.38052]
[1727276849259,3.2078,2628.3,2628.2,8.02624725]
[1727276849466,3.2078,2628.3,2628.0,8.02624725]
[1727276849665,3.2078,2628.3,2628.0,0.38053]
[1727276850074,3.2078,2628.3,2628.1,8.01065283]
[1727276850460,3.58829,2628.3,2628.1,8.01065283]
[1727276850773,3.2078,2628.3,2628.1,8.01065283]
[1727276851766,3.2078,2628.3,2628.1,8.39117283]
[1727276852068,3.2078,2628.3,2628.1,8.39116283]
[1727276852475,3.2078,2628.3,2628.2,3.0505]
[1727276852671,3.2078,2628.3,2628.2,3.4452]
[1727276853965,3.2078,2628.3,2628.2,0.7752]
[1727276854164,3.2078,2628.3,2628.1,0.38051]
[1727276854474,3.2078,2628.3,2628.1,8.20627791]
[1727276855065,0.3871,2628.5,2628.2,0.3805]
[1727276855469,0.38048,2628.4,2628.1,7.82576791]
[1727276855862,0.3681,2628.4,2628.1,7.82576791]
[1727276856065,0.74858,2628.4,2628.1,7.82576791]
[1727276856268,0.3681,2628.4,2628.0,8.21841634]
[1727276856575,0.74858,2628.4,2628.0,0.38053]
[1727276856760,0.74857,2628.4,2628.0,0.38052]
[1727276856964,0.74857,2628.4,2628.0,8.47648039]
[1727276857161,3.2078,2628.6,2628.2,2.67]
[1727276857466,1.97699308,2628.9,2628.2,2.67]
[1727276857467,0.3656,2628.9,2628.4,2.67]
[1727276857668,3.2078,2629.0,2628.9,0.3804]
[1727276858177,3.2078,2629.0,2628.9,8.36653328]
[1727276858472,3.2078,2629.0,2628.9,8.74693328]
[1727276859068,3.2078,2629.0,2628.9,8.36653328]
[1727276859265,3.2078,2629.0,2628.9,8.74693328]
[1727276859466,3.2078,2629.0,2628.9,8.36653328]
[1727276859965,3.2078,2629.0,2628.9,7.98703328]
[1727276860361,3.2078,2629.0,2628.8,8.47668974]
[1727276860661,3.2078,2629.0,2628.8,0.38041]
[1727276860973,3.2078,2629.0,2628.9,8.11506313]
[1727276861369,3.2078,2629.0,2628.8,8.11506313]
[1727276861567,3.2078,2629.0,2628.8,0.38041]
[1727276861870,3.2078,2629.0,2628.8,8.50292477]
[1727276862070,3.2078,2629.0,2628.9,0.3804]
[1727276862362,3.2078,2629.0,2628.9,8.12251477]
[1727276863367,3.2078,2629.0,2628.8,8.03947225]
[1727276863569,3.2078,2629.0,2628.7,0.38043]
[1727276863770,3.2078,2629.0,2628.7,8.05208255]
[1727276863972,3.2078,2629.0,2628.7,8.43251255]
[1727276864174,3.2078,2629.0,2628.6,0.99213224]
[1727276864175,3.2078,2629.0,2628.6,1.37257224]
[1727276864379,3.2078,2629.0,2628.8,8.05208255]
[1727276864576,3.2078,2629.0,2628.8,8.43249255]
[1727276864777,3.2078,2629.0,2628.8,0.38041]
[1727276865178,3.2078,2629.0,2628.9,7.85820944]
[1727276865769,3.2078,2629.0,2628.8,8.14463866]
[1727276866178,3.2078,2629.0,2628.8,0.3804]
[1727276866375,3.2078,2629.0,2628.9,7.76423866]
[1727276867273,3.2078,2629.0,2628.8,0.3804]
[1727276867676,5.8778,2629.0,2628.5,0.99213224]
[1727276867875,5.8778,2629.0,2628.4,2.71941224]
[1727276868071,5.8778,2629.0,2628.7,0.38042]
[1727276868072,0.3794,2628.9,2628.7,0.38042]
[1727276868272,0.4048,2628.8,2628.7,0.38042]
[1727276868777,0.7843,2628.8,2628.7,0.38042]
[1727276872081,3.2078,2629.0,2628.6,2.67]
[1727276872268,3.58819,2629.0,2628.7,0.38042]
[1727276872467,3.2078,2629.0,2628.9,0.3804]
[1727276872881,3.2078,2629.0,2628.9,0.7829]
[1727276873368,3.2078,2629.0,2628.9,0.4025]
[1727276873567,3.2078,2629.0,2628.9,0.7829]
[1727276874085,3.2078,2629.0,2628.9,13.62186356]
[1727276874288,3.2078,2629.0,2628.9,12.67085356]
[1727276874473,3.2078,2629.0,2628.9,13.6629858]
[1727276875475,3.2078,2629.0,2628.9,12.67085356]
[1727276875875,3.2078,2629.0,2628.9,8.86685356]
[1727276879183,3.2078,2629.0,2628.9,10.76887356]
[1727276879387,3.2078,2629.0,2628.9,14.57287356]
[1727276879589,3.2078,2629.0,2628.9,10.76887356]
[1727276880279,3.2078,2629.0,2628.9,9.81786356]
[1727276882385,3.2078,2629.0,2628.9,8.86685356]
[1727276884586,3.2078,2629.0,2628.9,8.46435356]
[1727276884787,3.2078,2629.0,2628.9,8.08395356]
[1727276884988,3.58819,2629.0,2628.7,1.37256224]
[1727276885289,1.15611,2628.9,2628.8,8.03402399]
[1727276885489,6.86213,2628.9,2628.8,8.03402399]
[1727276885684,6.86213,2628.9,2628.3,0.99213224]
[1727276885685,0.38048,2628.4,2628.0,1.37266224]
[1727276885891,1.2081,2628.3,2628.0,0.38053]
[1727276886086,1.2081,2628.3,2628.2,7.7779335]
[1727276886395,1.2081,2628.3,2627.8,1.76038224]
[1727276886396,0.38051,2628.2,2627.8,1.76038224]
[1727276886588,3.8781,2628.3,2627.8,1.37983224]
[1727276886778,3.2078,2628.1,2628.0,8.16245244]
[1727276887183,3.2078,2628.1,2627.8,0.99213224]
[1727276887380,3.58833,2628.1,2627.7,1.37270224]
[1727276887701,3.58833,2628.1,2627.9,8.16245244]
[1727276887900,0.38053,2628.0,2627.8,7.88201531]
[1727276888192,0.38053,2628.0,2627.6,1.37271224]
[1727276888193,0.38054,2628.0,2627.6,1.37271224]
[1727276888388,0.38054,2628.0,2627.6,0.38058]
[1727276888594,6.25833,2628.1,2627.7,8.26258531]
[1727276888794,0.38053,2628.0,2627.7,8.26258531]
[1727276888990,3.2078,2628.1,2627.6,7.84500308]
[1727276889298,3.2078,2627.8,2627.5,1.37272224]
[1727276889497,0.7766,2627.7,2627.6,7.84500308]
[1727276889693,0.7766,2627.7,2627.4,3.42476742]
[1727276889995,3.2078,2627.5,2627.2,1.37277224]
[1727276890196,3.2078,2627.5,2627.1,4.05723224]
[1727276890405,3.2078,2627.5,2627.4,7.77195615]
[1727276890587,3.2078,2627.5,2627.2,8.15259615]
[1727276890788,5.8778,2627.5,2627.0,8.78476899]
[1727276890985,3.2078,2627.2,2626.8,0.99213224]
[1727276891191,5.8778,2626.9,2626.4,0.99213224]
[1727276891393,3.2078,2626.5,2626.3,0.85478365]
[1727276891695,3.2078,2626.5,2626.4,8.60574293]
[1727276892197,3.2078,2626.5,2626.4,0.85476465]
[1727276892398,3.2078,2626.5,2626.4,0.38076]
[1727276892587,3.2078,2626.5,2626.3,0.85478365]
[1727276892792,3.2078,2626.5,2626.4,0.38076]
[1727276893002,3.2078,2626.5,2626.4,7.83608403]
[1727276893389,3.2078,2626.5,2626.4,8.21684403]
[1727276893593,3.2078,2626.5,2626.4,7.83608403]
[1727276893795,3.2078,2626.5,2626.3,0.47401365]
[1727276893994,0.8011,2626.4,2626.3,0.47401365]
[1727276894291,7.2783,2626.4,2625.4,4.19993224]
[1727276894495,3.2078,2626.0,2625.5,0.38089]
[1727276894800,3.2078,2626.0,2625.7,8.55674166]
[1727276895099,3.2078,2626.0,2625.8,0.38084]
[1727276895394,3.2078,2626.0,2625.6,0.38087]
[1727276895602,3.58863,2626.0,2625.5,3.05089]
[1727276895794,3.58863,2626.0,2625.7,8.1327134]
[1727276895795,3.2078,2626.0,2625.7,8.1327134]
[1727276895990,3.2078,2626.0,2625.6,8.5135834]
[1727276896390,3.2078,2626.0,2625.6,0.38087]
[1727276896598,3.2078,2626.0,2625.7,8.1327134]
[1727276896995,3.2078,2626.0,2625.7,8.5135734]
[1727276897296,3.2078,2626.0,2625.7,10.8027134]
[1727276897498,3.2078,2626.0,2625.7,11.1835734]
[1727276898204,3.2078,2626.0,2625.7,10.8027134]
[1727276898390,3.2078,2626.0,2625.7,11.1835734]
[1727276899591,3.58862,2626.0,2625.7,8.1327134]
[1727276900093,3.2078,2626.0,2625.7,8.1327134]
[1727276900296,3.58863,2626.0,2625.7,8.1327134]
[1727276900499,0.38085,2625.9,2625.4,0.3809]
[1727276900801,3.2078,2625.6,2625.4,8.31125304]
[1727276901195,3.2078,2625.6,2625.4,7.93035304]
[1727276901394,0.38091,2625.4,2625.0,0.38097]
[1727276901595,0.3651,2625.7,2625.0,0.38097]
[1727276901596,3.2078,2625.2,2625.0,0.38097]
[1727276901901,3.2078,2625.2,2625.0,7.77073936]
[1727276902102,3.2078,2625.2,2625.0,0.38096]
[1727276902301,3.2078,2625.2,2625.1,8.15168936]
[1727276902698,3.2078,2625.2,2625.1,0.38095]
[1727276902899,3.2078,2625.2,2625.1,8.34185134]
[1727276903101,5.8778,2625.5,2625.1,8.34185134]
[1727276903303,5.8778,2625.5,2625.1,7.96090134]
[1727276903497,0.38092,2625.4,2625.1,7.96090134]
[1727276903701,0.38092,2625.4,2624.9,8.33407933]
[1727276903894,1.31729,2625.7,2625.0,7.95310933]
[1727276903895,3.58874,2625.2,2625.0,7.95310933]
[1727276904097,3.2078,2625.2,2624.8,0.77069]
[1727276904298,3.05091,2625.4,2624.9,7.95310933]
[1727276904497,3.2078,2625.0,2624.9,0.38097]
[1727276904795,3.2078,2625.0,2624.9,8.51383095]
[1727276905408,3.2078,2625.4,2625.3,0.38092]
[1727276905597,3.81603169,2625.7,2625.6,0.38088]
[1727276906112,3.5729,2625.7,2625.6,0.38088]
[1727276906315,3.5729,2625.7,2625.3,10.84532854]
[1727276906605,3.2078,2625.7,2625.6,0.38088]
[1727276907201,3.2078,2626.1,2625.8,0.38084]
[1727276908606,3.2078,2626.1,2625.6,7.84486864]
[1727276908907,0.3962,2626.2,2625.6,7.84486864]
[1727276908908,0.3962,2626.2,2625.9,0.38083]
[1727276909311,0.3962,2626.2,2626.0,0.38082]
[1727276909616,0.3962,2626.2,2626.0,0.38081]
[1727276910000,0.3962,2626.2,2626.1,0.38081]
[1727276911708,3.2078,2626.4,2626.3,0.38078]
[1727276913110,3.2078,2626.7,2626.3,3.05078]
[1727276913307,3.2078,2626.7,2626.4,0.38076]
[1727276913508,3.2078,2626.7,2626.3,8.06092808]
[1727276913702,5.8778,2626.7,2626.3,8.06092808]
[1727276913908,0.38074,2626.6,2626.3,8.06092808]
[1727276914107,5.8778,2626.7,2626.3,8.06092808]
[1727276914305,0.38073,2626.6,2626.2,0.38079]
[1727276914506,5.8778,2626.7,2626.2,0.38079]
[1727276914813,6.25853,2626.7,2626.3,8.49312681]
[1727276915206,6.25853,2626.7,2626.3,0.38077]
[1727276915406,6.25852,2626.7,2626.4,7.85154792]
[1727276916312,6.25852,2626.7,2626.4,8.23230792]
[1727276916614,3.8072,2626.6,2626.0,0.38081]
[1727276916804,3.2078,2626.1,2626.0,0.38081]
[1727276917612,3.2078,2626.1,2625.9,0.38082]
[1727276917810,3.2078,2626.1,2626.0,0.38082]
[1727276918212,7.0158,2626.1,2625.9,0.38083]
[1727276918405,3.2078,2626.1,2625.9,0.38083]
[1727276918806,3.2078,2626.1,2625.7,0.3813]
[1727276919011,3.2078,2626.1,2625.9,0.38082]
[1727276919208,3.2078,2626.1,2626.0,0.38082]
[1727276920113,0.3919,2626.2,2626.1,0.38081]
[1727276920414,3.2078,2626.2,2626.1,3.05081]
[1727276920617,3.2078,2626.2,2626.1,0.38081]
[1727276921313,3.2078,2626.5,2626.2,0.38078]
[1727276921615,3.2078,2626.5,2626.3,0.38077]
[1727276922025,3.2078,2626.5,2626.4,0.38076]
[1727276922412,3.2078,2626.5,2626.3,0.38077]
[1727276923008,3.2078,2626.5,2626.4,0.38076]
[1727276923214,3.2078,2626.5,2626.4,8.38106065]
[1727276923415,3.2078,2626.5,2626.4,8.00030065]
[1727276923814,3.2078,2626.5,2626.4,8.38106065]
[1727276925018,3.2078,2626.5,2626.4,8.00030065]
[1727276925315,3.2078,2626.5,2626.4,8.38106065]
[1727276931128,3.2078,2626.5,2626.4,12.00298065]
[1727276931323,3.2078,2626.5,2626.4,19.2414199]
[1727276932317,3.2078,2626.5,2626.4,8.38106065]
[1727276932318,3.5123,2626.5,2626.4,8.38106065]
[1727276932725,3.5123,2626.5,2626.4,8.00030065]
[1727276933127,1.33268,2626.4,2626.3,7.98795838]
[1727276933320,1.33268,2626.4,2625.7,0.38086]
[1727276933321,0.38083,2626.0,2625.7,0.38086]
[1727276933522,0.38083,2626.0,2625.2,7.60183]
[1727276933523,3.2078,2625.8,2625.5,0.38088]
[1727276933820,3.2078,2625.8,2625.6,0.38088]
[1727276934023,3.2078,2625.8,2625.7,0.38086]
[1727276934323,0.7529,2625.9,2625.8,0.38085]
[1727276935227,3.2078,2626.2,2625.7,0.95216]
[1727276935421,3.6122,2626.2,2626.1,0.38081]
[1727276936727,3.6122,2626.2,2625.8,6.10763698]
[1727276936728,3.6122,2626.2,2626.0,0.38081]
[1727276937030,3.6122,2626.2,2626.1,0.38081]
[1727276937225,3.2078,2626.2,2626.1,0.38081]
[1727276937526,3.2078,2626.2,2626.1,8.41351598]
[1727276937733,3.2078,2626.2,2626.1,0.38081]
[1727276937935,3.5124,2626.2,2626.1,0.38081]
[1727276940121,0.3046,2626.2,2626.1,13.17652384]
[1727276940335,0.3045,2626.5,2626.4,0.38076]
[1727276940827,0.3045,2626.5,2626.4,12.22365384]
[1727276941027,0.3045,2626.5,2626.4,21.84557384]
[1727276941236,3.58847,2627.1,2626.4,31.20902138]
[1727276941527,3.58847,2627.1,2626.5,2.67361054]
[1727276941528,0.3967,2627.0,2626.5,2.67361054]
[1727276941723,3.44739,2627.0,2626.5,0.75604]
[1727276941919,0.68519,2626.9,2626.6,8.00650577]
[1727276942124,3.2078,2626.8,2626.6,8.00650577]
[1727276942323,3.58851,2626.8,2626.6,8.00650577]
[1727276942526,0.38072,2626.7,2626.5,8.00650577]
[1727276942724,3.2078,2626.8,2626.2,0.99532094]
[1727276942725,2.67,2626.6,2626.2,0.99532094]
[1727276942924,2.67,2626.6,2626.1,5.07371287]
[1727276942925,5.8778,2626.4,2626.1,0.38081]
[1727276943134,5.8778,2626.4,2626.3,7.77809496]